[Event "*** Titled Tuesday Blitz AM"]
[Site "Chess.com"]
[Date "2020.01.07"]
[Round "3"]
[White "Megagigahiper3345"]
[Black "arjwezhrtdrz"]
[Result "0-1"]
[WhiteElo "2427"]
[BlackElo "2279"]
[TimeControl "180+2"]
[EndTime "9:37:40 PST"]
[Termination "arjwezhrtdrz won by resignation"]

1. d4 {[%clk 0:03:01.9]} 1... d6 {[%clk 0:02:58]} 2. c4 {[%clk 0:02:53.4]} 2...
e5 {[%clk 0:02:58.2]} 3. d5 {[%clk 0:02:54.8]} 3... f5 {[%clk 0:02:58.4]} 4. e4
{[%clk 0:02:53.7]} 4... fxe4 {[%clk 0:02:59]} 5. Nc3 {[%clk 0:02:54.5]} 5... Nf6
{[%clk 0:03:00.2]} 6. Bg5 {[%clk 0:02:53.8]} 6... Be7 {[%clk 0:03:01.2]} 7. Bxf6
{[%clk 0:02:39.9]} 7... Bxf6 {[%clk 0:03:01.4]} 8. Nxe4 {[%clk 0:02:38.4]} 8...
O-O {[%clk 0:03:02.5]} 9. Ne2 {[%clk 0:02:37.8]} 9... Be7 {[%clk 0:03:03]} 10.
N2g3 {[%clk 0:02:38.8]} 10... a5 {[%clk 0:02:57.9]} 11. Bd3 {[%clk 0:02:37.2]}
11... b6 {[%clk 0:02:55.6]} 12. h4 {[%clk 0:02:26.2]} 12... Na6 {[%clk
0:02:51.8]} 13. Qh5 {[%clk 0:01:48.4]} 13... g6 {[%clk 0:02:51.6]} 14. Qh6
{[%clk 0:01:49.5]} 14... Nc5 {[%clk 0:01:05.1]} 15. Nxc5 {[%clk 0:01:40.6]}
15... bxc5 {[%clk 0:01:05.6]} 16. Bxg6 {[%clk 0:00:53.5]} 16... hxg6 {[%clk
0:01:05.9]} 17. Qxg6+ {[%clk 0:00:28.1]} 17... Kh8 {[%clk 0:01:06.2]} 18. Qh6+
{[%clk 0:00:21.7]} 18... Kg8 {[%clk 0:01:06.4]} 19. Qg6+ {[%clk 0:00:23.6]}
19... Kh8 {[%clk 0:01:07.6]} 20. Nh5 {[%clk 0:00:25.5]} 20... Bf6 {[%clk
0:00:48.1]} 21. Qh6+ {[%clk 0:00:26]} 21... Kg8 {[%clk 0:00:48.9]} 22. Qg6+
{[%clk 0:00:27]} 22... Kh8 {[%clk 0:00:50]} 23. g4 {[%clk 0:00:25.5]} 23... Qe7
{[%clk 0:00:43]} 24. Qh6+ {[%clk 0:00:21.3]} 24... Kg8 {[%clk 0:00:39.7]} 25.
Qg6+ {[%clk 0:00:19.4]} 25... Bg7 {[%clk 0:00:40.2]} 26. O-O-O {[%clk
0:00:13.2]} 26... Qf7 {[%clk 0:00:40]} 27. Qg5 {[%clk 0:00:11]} 27... Kh7 {[%clk
0:00:33.6]} 28. Rd3 {[%clk 0:00:11.8]} 28... Bh6 {[%clk 0:00:33.6]} 29. Kb1
{[%clk 0:00:08.1]} 29... Bxg5 {[%clk 0:00:34.2]} 30. hxg5 {[%clk 0:00:10]} 30...
Bxg4 {[%clk 0:00:23.7]} 31. Nf6+ {[%clk 0:00:09.1]} 31... Kg6 {[%clk 0:00:24.1]}
32. Rg3 {[%clk 0:00:06.5]} 32... Bf5+ {[%clk 0:00:22.9]} 33. Ka1 {[%clk
0:00:07.4]} 33... Rh8 {[%clk 0:00:23.2]} 34. Rhg1 {[%clk 0:00:09.1]} 34... Rh4
{[%clk 0:00:21.6]} 35. Re3 {[%clk 0:00:10]} 35... Rah8 {[%clk 0:00:21.5]} 36. a4
{[%clk 0:00:11.9]} 36... Rxc4 {[%clk 0:00:20.2]} 37. Reg3 {[%clk 0:00:13.8]}
37... Rxa4+ {[%clk 0:00:20.2]} 0-1

[Event "*** Titled Tuesday Blitz AM"]
[Site "Chess.com"]
[Date "2020.01.07"]
[Round "3"]
[White "Daxasy"]
[Black "capatl"]
[Result "1-0"]
[WhiteElo "2836"]
[BlackElo "2653"]
[TimeControl "180+2"]
[EndTime "9:37:47 PST"]
[Termination "Daxasy won by resignation"]

1. e4 {[%clk 0:03:01.9]} 1... c5 {[%clk 0:03:01.2]} 2. Nf3 {[%clk 0:03:02.8]}
2... e6 {[%clk 0:03:02.7]} 3. d4 {[%clk 0:03:03.4]} 3... cxd4 {[%clk 0:03:04.6]}
4. Nxd4 {[%clk 0:03:05.2]} 4... a6 {[%clk 0:03:06.3]} 5. c4 {[%clk 0:03:05.9]}
5... Qc7 {[%clk 0:03:07.6]} 6. a3 {[%clk 0:03:00.2]} 6... d6 {[%clk 0:03:05.5]}
7. Nc3 {[%clk 0:03:00.8]} 7... Nd7 {[%clk 0:03:07.1]} 8. Be3 {[%clk 0:02:58.9]}
8... b6 {[%clk 0:03:06.1]} 9. f3 {[%clk 0:02:59.6]} 9... Bb7 {[%clk 0:03:07.4]}
10. Be2 {[%clk 0:03:00.9]} 10... Ngf6 {[%clk 0:03:08.4]} 11. O-O {[%clk
0:03:02.1]} 11... Be7 {[%clk 0:03:09.5]} 12. Qd2 {[%clk 0:03:03.2]} 12... O-O
{[%clk 0:03:02.2]} 13. Rfc1 {[%clk 0:03:04.3]} 13... Rac8 {[%clk 0:03:03]} 14.
a4 {[%clk 0:03:05.7]} 14... Ne5 {[%clk 0:02:59.1]} 15. a5 {[%clk 0:03:02.5]}
15... bxa5 {[%clk 0:02:55.3]} 16. Nb3 {[%clk 0:03:02.4]} 16... Nc6 {[%clk
0:02:36.2]} 17. Nd5 {[%clk 0:02:45.9]} 17... exd5 {[%clk 0:02:02]} 18. cxd5
{[%clk 0:02:46.6]} 18... Qb8 {[%clk 0:01:54.6]} 19. dxc6 {[%clk 0:02:44.7]}
19... Bxc6 {[%clk 0:01:56.5]} 20. Nxa5 {[%clk 0:02:17.2]} 20... Bb5 {[%clk
0:01:57.1]} 21. Nc4 {[%clk 0:01:59.1]} 21... d5 {[%clk 0:01:02.4]} 22. exd5
{[%clk 0:01:46]} 22... Rfd8 {[%clk 0:01:02.9]} 23. Nb6 {[%clk 0:01:28.4]} 23...
Rxc1+ {[%clk 0:01:03.2]} 24. Rxc1 {[%clk 0:01:29.1]} 24... Bd6 {[%clk
0:00:31.2]} 25. g3 {[%clk 0:00:42.3]} 25... Bxg3 {[%clk 0:00:31.6]} 26. Bxb5
{[%clk 0:00:43.4]} 26... axb5 {[%clk 0:00:14.5]} 27. hxg3 {[%clk 0:00:44.7]}
27... Qxg3+ {[%clk 0:00:15.9]} 28. Qg2 {[%clk 0:00:46]} 28... Qe5 {[%clk
0:00:15.1]} 29. Qg5 {[%clk 0:00:32.1]} 29... Qxb2 {[%clk 0:00:11]} 30. Rd1
{[%clk 0:00:32.9]} 30... h6 {[%clk 0:00:11.3]} 31. Qg2 {[%clk 0:00:31.9]} 31...
Qe5 {[%clk 0:00:12]} 32. Bd4 {[%clk 0:00:31.5]} 32... Qf5 {[%clk 0:00:11.8]} 33.
Re1 {[%clk 0:00:27]} 33... b4 {[%clk 0:00:10.6]} 34. Re5 {[%clk 0:00:24.3]}
34... Qb1+ {[%clk 0:00:10.7]} 35. Kh2 {[%clk 0:00:25.8]} 35... b3 {[%clk
0:00:10.7]} 36. Re3 {[%clk 0:00:16.3]} 36... Qc2 {[%clk 0:00:11]} 37. Bxf6
{[%clk 0:00:15.1]} 37... Qxg2+ {[%clk 0:00:11]} 38. Kxg2 {[%clk 0:00:17]} 38...
Rb8 {[%clk 0:00:11.1]} 39. Rxb3 {[%clk 0:00:16.1]} 39... gxf6 {[%clk 0:00:11.9]}
40. Rb2 {[%clk 0:00:14.7]} 40... Kg7 {[%clk 0:00:13.5]} 41. Nc4 {[%clk
0:00:15.8]} 41... Rd8 {[%clk 0:00:14.1]} 42. d6 {[%clk 0:00:17.1]} 42... f5
{[%clk 0:00:15.6]} 43. Kg3 {[%clk 0:00:17.7]} 43... Kf6 {[%clk 0:00:17.5]} 44.
Kf4 {[%clk 0:00:19.1]} 44... Ke6 {[%clk 0:00:18.5]} 45. Rb5 {[%clk 0:00:19.7]}
45... Rc8 {[%clk 0:00:18.5]} 46. Re5+ {[%clk 0:00:20.8]} 46... Kd7 {[%clk
0:00:19.8]} 47. Nb6+ {[%clk 0:00:22.2]} 1-0

[Event "*** Titled Tuesday Blitz AM"]
[Site "Chess.com"]
[Date "2020.01.07"]
[Round "3"]
[White "Sashadav97"]
[Black "2L8IWUN"]
[Result "1-0"]
[WhiteElo "2545"]
[BlackElo "2133"]
[TimeControl "180+2"]
[EndTime "9:37:47 PST"]
[Termination "Sashadav97 won by checkmate"]

1. d4 {[%clk 0:03:01.9]} 1... Nf6 {[%clk 0:02:53.5]} 2. c4 {[%clk 0:03:00.3]}
2... e6 {[%clk 0:02:26.2]} 3. Nc3 {[%clk 0:03:00.6]} 3... d5 {[%clk 0:02:26.9]}
4. cxd5 {[%clk 0:03:01.2]} 4... exd5 {[%clk 0:02:28.8]} 5. Bg5 {[%clk
0:03:02.7]} 5... c6 {[%clk 0:02:06.9]} 6. e3 {[%clk 0:03:03.8]} 6... Be6 {[%clk
0:01:57]} 7. Bd3 {[%clk 0:03:03.8]} 7... Nbd7 {[%clk 0:01:42.2]} 8. Nge2 {[%clk
0:02:46.5]} 8... h6 {[%clk 0:01:42.9]} 9. Bh4 {[%clk 0:02:44.5]} 9... g5 {[%clk
0:01:43.9]} 10. Bg3 {[%clk 0:02:43.3]} 10... Nh5 {[%clk 0:01:45]} 11. Qc2 {[%clk
0:02:40.1]} 11... Nxg3 {[%clk 0:01:26.9]} 12. Nxg3 {[%clk 0:02:38.6]} 12... h5
{[%clk 0:01:20.8]} 13. O-O-O {[%clk 0:02:33.1]} 13... h4 {[%clk 0:01:20.2]} 14.
Nf5 {[%clk 0:02:32.7]} 14... Qf6 {[%clk 0:01:16.5]} 15. e4 {[%clk 0:02:25]}
15... Bxf5 {[%clk 0:01:03.6]} 16. exf5 {[%clk 0:02:26.9]} 16... O-O-O {[%clk
0:01:04.1]} 17. Nxd5 {[%clk 0:02:26.9]} 17... Qd6 {[%clk 0:01:02.7]} 18. Nc3
{[%clk 0:02:26.3]} 18... Qxd4 {[%clk 0:01:01.3]} 19. Kb1 {[%clk 0:02:22]} 19...
Kb8 {[%clk 0:00:58.2]} 20. f6 {[%clk 0:01:47.7]} 20... Qxf6 {[%clk 0:00:30.7]}
21. Bf5 {[%clk 0:01:43.5]} 21... Bd6 {[%clk 0:00:31.9]} 22. h3 {[%clk
0:01:05.9]} 22... Nb6 {[%clk 0:00:31.5]} 23. Bd3 {[%clk 0:00:54.4]} 23... Be5
{[%clk 0:00:28.8]} 24. Ne4 {[%clk 0:00:54.1]} 24... Qg7 {[%clk 0:00:29.2]} 25.
Rhe1 {[%clk 0:00:53.5]} 25... Rhe8 {[%clk 0:00:26.6]} 26. Nc5 {[%clk 0:00:45.4]}
26... f6 {[%clk 0:00:21.3]} 27. Bf5 {[%clk 0:00:43.9]} 27... Qe7 {[%clk
0:00:15]} 28. Ne6 {[%clk 0:00:35.3]} 28... Rxd1+ {[%clk 0:00:15.7]} 29. Rxd1
{[%clk 0:00:37.2]} 29... Nd5 {[%clk 0:00:15.9]} 30. Nc5 {[%clk 0:00:34.3]} 30...
Nb4 {[%clk 0:00:13.3]} 31. Qc4 {[%clk 0:00:33.3]} 31... Nd5 {[%clk 0:00:12.2]}
32. a3 {[%clk 0:00:21.4]} 32... Rd8 {[%clk 0:00:12]} 33. Rd3 {[%clk 0:00:22.3]}
33... Nb6 {[%clk 0:00:12.5]} 34. Qc2 {[%clk 0:00:17.9]} 34... Rxd3 {[%clk
0:00:11.8]} 35. Nxd3 {[%clk 0:00:19.8]} 35... Bd6 {[%clk 0:00:10.4]} 36. f3
{[%clk 0:00:18.6]} 36... Nd5 {[%clk 0:00:10.9]} 37. Be4 {[%clk 0:00:19.4]} 37...
Qe6 {[%clk 0:00:09.5]} 38. Bxd5 {[%clk 0:00:16.7]} 38... Qxd5 {[%clk 0:00:10.2]}
39. Nf2 {[%clk 0:00:18.3]} 39... Be5 {[%clk 0:00:10.9]} 40. Ne4 {[%clk
0:00:19.8]} 40... Qd4 {[%clk 0:00:12]} 41. Nd2 {[%clk 0:00:20.3]} 41... Qg1+
{[%clk 0:00:12.7]} 42. Ka2 {[%clk 0:00:19.9]} 42... Qxg2 {[%clk 0:00:13.7]} 43.
Qd3 {[%clk 0:00:21.3]} 43... Qf2 {[%clk 0:00:13.5]} 44. Qd8# {[%clk 0:00:20.3]}
1-0

[Event "*** Titled Tuesday Blitz AM"]
[Site "Chess.com"]
[Date "2020.01.07"]
[Round "3"]
[White "Alexander_Donchenko"]
[Black "Ariadna_Atreides"]
[Result "1-0"]
[WhiteElo "2719"]
[BlackElo "2062"]
[TimeControl "180+2"]
[EndTime "9:37:48 PST"]
[Termination "Alexander_Donchenko won on time"]

1. e4 {[%clk 0:02:41.4]} 1... c5 {[%clk 0:03:00]} 2. Nf3 {[%clk 0:02:42.2]} 2...
d6 {[%clk 0:03:00.7]} 3. Bb5+ {[%clk 0:02:42.1]} 3... Bd7 {[%clk 0:03:01]} 4.
Bxd7+ {[%clk 0:02:42.9]} 4... Qxd7 {[%clk 0:03:01.7]} 5. c4 {[%clk 0:02:42.5]}
5... e5 {[%clk 0:03:00.9]} 6. Nc3 {[%clk 0:02:41.7]} 6... g6 {[%clk 0:02:55.9]}
7. d3 {[%clk 0:02:41.5]} 7... Bg7 {[%clk 0:02:56.8]} 8. O-O {[%clk 0:02:40.5]}
8... Ne7 {[%clk 0:02:57.5]} 9. Bg5 {[%clk 0:02:34.2]} 9... O-O {[%clk
0:02:55.5]} 10. Bxe7 {[%clk 0:02:34.2]} 10... Qxe7 {[%clk 0:02:55.4]} 11. Nd5
{[%clk 0:02:35.5]} 11... Qd7 {[%clk 0:02:55.3]} 12. a3 {[%clk 0:02:31.3]} 12...
Nc6 {[%clk 0:02:53.6]} 13. b4 {[%clk 0:02:32.1]} 13... b6 {[%clk 0:02:53.8]} 14.
Qa4 {[%clk 0:02:29.5]} 14... Kh8 {[%clk 0:02:44.2]} 15. Rab1 {[%clk 0:02:03.9]}
15... Rad8 {[%clk 0:02:33]} 16. Ne1 {[%clk 0:01:36.3]} 16... Nd4 {[%clk
0:02:29.7]} 17. Qxd7 {[%clk 0:01:35.9]} 17... Rxd7 {[%clk 0:02:30.2]} 18. Rb2
{[%clk 0:01:27.3]} 18... f5 {[%clk 0:02:26.3]} 19. Nc2 {[%clk 0:01:25.8]} 19...
fxe4 {[%clk 0:02:18.8]} 20. dxe4 {[%clk 0:01:26.5]} 20... Rdf7 {[%clk 0:02:16]}
21. f3 {[%clk 0:01:14.9]} 21... Bh6 {[%clk 0:02:15.3]} 22. bxc5 {[%clk
0:01:06.9]} 22... dxc5 {[%clk 0:02:10.9]} 23. Ne1 {[%clk 0:01:04.3]} 23... Bg5
{[%clk 0:02:00.3]} 24. Nd3 {[%clk 0:01:05.2]} 24... Re8 {[%clk 0:01:50.1]} 25.
a4 {[%clk 0:01:06.4]} 25... Bd8 {[%clk 0:01:49.7]} 26. Rfb1 {[%clk 0:01:02.9]}
26... g5 {[%clk 0:01:34.7]} 27. h3 {[%clk 0:00:57.5]} 27... h5 {[%clk
0:01:32.7]} 28. a5 {[%clk 0:00:56.7]} 28... bxa5 {[%clk 0:01:19.7]} 29. Rb7
{[%clk 0:00:52.7]} 29... Rxb7 {[%clk 0:00:54.3]} 30. Rxb7 {[%clk 0:00:54.6]}
30... Nc6 {[%clk 0:00:55.6]} 31. Nxc5 {[%clk 0:00:50]} 31... Rg8 {[%clk
0:00:34]} 32. Ne6 {[%clk 0:00:48.5]} 32... g4 {[%clk 0:00:30.2]} 33. fxg4 {[%clk
0:00:42]} 33... hxg4 {[%clk 0:00:30.2]} 34. hxg4 {[%clk 0:00:43.2]} 34... a4
{[%clk 0:00:26.2]} 35. g5 {[%clk 0:00:31.5]} 35... Bxg5 {[%clk 0:00:21.5]} 36.
Nxg5 {[%clk 0:00:29.5]} 36... Rxg5 {[%clk 0:00:21.3]} 37. Nf6 {[%clk 0:00:30.3]}
37... Rg7 {[%clk 0:00:16.2]} 38. Rb5 {[%clk 0:00:29.3]} 38... Rf7 {[%clk
0:00:15.4]} 39. Nd5 {[%clk 0:00:28.5]} 39... a6 {[%clk 0:00:09.4]} 40. Rc5
{[%clk 0:00:27.8]} 40... Nd4 {[%clk 0:00:09]} 41. g3 {[%clk 0:00:20.3]} 41...
Ne2+ {[%clk 0:00:08]} 42. Kg2 {[%clk 0:00:21]} 42... a3 {[%clk 0:00:05.2]} 43.
Ra5 {[%clk 0:00:21.5]} 1-0

[Event "*** Titled Tuesday Blitz AM"]
[Site "Chess.com"]
[Date "2020.01.07"]
[Round "3"]
[White "MishkaFighter"]
[Black "sganerdene"]
[Result "1-0"]
[WhiteElo "2448"]
[BlackElo "2647"]
[TimeControl "180+2"]
[EndTime "9:37:51 PST"]
[Termination "MishkaFighter won by resignation"]

1. d4 {[%clk 0:03:01.9]} 1... Nf6 {[%clk 0:03:00.8]} 2. c4 {[%clk 0:03:02.4]}
2... g6 {[%clk 0:03:02]} 3. Nc3 {[%clk 0:03:03.1]} 3... Bg7 {[%clk 0:03:03.5]}
4. g3 {[%clk 0:03:04.2]} 4... O-O {[%clk 0:03:04.2]} 5. Bg2 {[%clk 0:03:05.6]}
5... d6 {[%clk 0:03:05.7]} 6. Nf3 {[%clk 0:03:06.9]} 6... Nc6 {[%clk 0:03:05.4]}
7. O-O {[%clk 0:03:08.3]} 7... a6 {[%clk 0:03:06.7]} 8. b3 {[%clk 0:03:06.7]}
8... Rb8 {[%clk 0:03:07.4]} 9. d5 {[%clk 0:03:03.9]} 9... Na5 {[%clk 0:03:06.3]}
10. Bg5 {[%clk 0:03:04.6]} 10... c5 {[%clk 0:03:03.8]} 11. dxc6 {[%clk
0:03:03.9]} 11... Nxc6 {[%clk 0:03:04.4]} 12. Rc1 {[%clk 0:03:05.4]} 12... Qa5
{[%clk 0:03:04.7]} 13. Qd2 {[%clk 0:02:48.7]} 13... Be6 {[%clk 0:02:39.1]} 14.
Rfd1 {[%clk 0:02:48.3]} 14... Rbc8 {[%clk 0:02:36.2]} 15. Ne1 {[%clk 0:02:28.2]}
15... Rfe8 {[%clk 0:02:11]} 16. Nd3 {[%clk 0:02:28.8]} 16... b5 {[%clk
0:02:04.1]} 17. c5 {[%clk 0:02:05]} 17... Red8 {[%clk 0:01:52.4]} 18. cxd6
{[%clk 0:01:44]} 18... Rxd6 {[%clk 0:01:51.5]} 19. Ne4 {[%clk 0:01:35]} 19...
Qxd2 {[%clk 0:01:49.5]} 20. Rxd2 {[%clk 0:01:36.9]} 20... Nxe4 {[%clk
0:01:45.2]} 21. Bxe4 {[%clk 0:01:38.8]} 21... Na7 {[%clk 0:00:50.2]} 22. Rdc2
{[%clk 0:01:33.4]} 22... Rxc2 {[%clk 0:00:50.2]} 23. Rxc2 {[%clk 0:01:35.3]}
23... f6 {[%clk 0:00:47]} 24. Bf4 {[%clk 0:01:26.6]} 24... Rd8 {[%clk
0:00:47.6]} 25. Rc7 {[%clk 0:01:26.3]} 25... Nc8 {[%clk 0:00:48.4]} 26. Kg2
{[%clk 0:01:21.7]} 26... g5 {[%clk 0:00:49.2]} 27. Be3 {[%clk 0:01:19.8]} 27...
Kf7 {[%clk 0:00:39]} 28. Nc5 {[%clk 0:01:16.6]} 28... Nd6 {[%clk 0:00:40.1]} 29.
Bxh7 {[%clk 0:01:13.6]} 29... f5 {[%clk 0:00:37.6]} 30. Bxg5 {[%clk 0:01:11.3]}
30... Bf6 {[%clk 0:00:38.9]} 31. Bg6+ {[%clk 0:00:59.3]} 31... Kxg6 {[%clk
0:00:37.3]} 32. Nxe6 {[%clk 0:01:01.2]} 32... Ra8 {[%clk 0:00:26.2]} 33. Bxf6
{[%clk 0:01:01.3]} 33... Kxf6 {[%clk 0:00:27.4]} 34. Nc5 {[%clk 0:01:01]} 34...
a5 {[%clk 0:00:25.1]} 35. h4 {[%clk 0:01:00.8]} 35... a4 {[%clk 0:00:24.4]} 36.
bxa4 {[%clk 0:01:01.4]} 36... bxa4 {[%clk 0:00:25.8]} 37. Rc6 {[%clk 0:00:53.5]}
37... Kf7 {[%clk 0:00:21.8]} 38. Ra6 {[%clk 0:00:50.1]} 38... Rxa6 {[%clk
0:00:20.7]} 39. Nxa6 {[%clk 0:00:52]} 39... Nb5 {[%clk 0:00:21.9]} 40. Nc5
{[%clk 0:00:52.7]} 40... a3 {[%clk 0:00:23.4]} 41. Nb3 {[%clk 0:00:37.1]} 41...
Nc3 {[%clk 0:00:24.5]} 42. Nc1 {[%clk 0:00:36.1]} 42... e5 {[%clk 0:00:25.6]}
43. Kf3 {[%clk 0:00:37.4]} 43... Kg6 {[%clk 0:00:25]} 44. Ke3 {[%clk 0:00:38.2]}
44... Kh5 {[%clk 0:00:24.8]} 45. Kd3 {[%clk 0:00:38.7]} 45... Ne4 {[%clk
0:00:26.1]} 46. Ke3 {[%clk 0:00:37]} 46... Nc3 {[%clk 0:00:27.4]} 47. f3 {[%clk
0:00:38.4]} 47... Kg6 {[%clk 0:00:26.2]} 48. Kd3 {[%clk 0:00:39.3]} 48... Nd5
{[%clk 0:00:27]} 49. e4 {[%clk 0:00:37.9]} 49... fxe4+ {[%clk 0:00:26.5]} 50.
Kxe4 {[%clk 0:00:39.8]} 50... Nc3+ {[%clk 0:00:24.3]} 51. Kxe5 {[%clk
0:00:40.7]} 51... Ne2 {[%clk 0:00:25.4]} 52. Nxe2 {[%clk 0:00:39.7]} 1-0

[Event "*** Titled Tuesday Blitz AM"]
[Site "Chess.com"]
[Date "2020.01.07"]
[Round "3"]
[White "BeanScreen"]
[Black "chess4ever007"]
[Result "0-1"]
[WhiteElo "2402"]
[BlackElo "2348"]
[TimeControl "180+2"]
[EndTime "9:38:05 PST"]
[Termination "chess4ever007 won by checkmate"]

1. e4 {[%clk 0:03:01.7]} 1... c5 {[%clk 0:03:00.3]} 2. Nf3 {[%clk 0:03:02.9]}
2... e6 {[%clk 0:03:01.4]} 3. d4 {[%clk 0:03:04.4]} 3... cxd4 {[%clk 0:03:02.9]}
4. Nxd4 {[%clk 0:03:05.8]} 4... Nc6 {[%clk 0:03:04.2]} 5. Nc3 {[%clk 0:03:06.8]}
5... Qc7 {[%clk 0:03:05]} 6. g3 {[%clk 0:03:07.9]} 6... a6 {[%clk 0:03:03.3]} 7.
Bg2 {[%clk 0:03:07.7]} 7... Nf6 {[%clk 0:03:04.3]} 8. O-O {[%clk 0:03:04.2]}
8... h5 {[%clk 0:03:04.4]} 9. Re1 {[%clk 0:03:04.6]} 9... Nxd4 {[%clk
0:02:43.9]} 10. Qxd4 {[%clk 0:03:04.9]} 10... Bc5 {[%clk 0:02:44.4]} 11. Bf4
{[%clk 0:01:43.3]} 11... d6 {[%clk 0:02:15.5]} 12. Qd3 {[%clk 0:01:38.9]} 12...
Ng4 {[%clk 0:02:10.7]} 13. Re2 {[%clk 0:01:20.6]} 13... h4 {[%clk 0:01:51.6]}
14. Na4 {[%clk 0:01:01.4]} 14... e5 {[%clk 0:01:36]} 15. Nxc5 {[%clk 0:00:59.2]}
15... exf4 {[%clk 0:01:29.7]} 16. Na4 {[%clk 0:00:36.2]} 16... hxg3 {[%clk
0:01:09]} 17. hxg3 {[%clk 0:00:35.6]} 17... Ne5 {[%clk 0:01:01.4]} 18. Qa3
{[%clk 0:00:19.1]} 18... Bg4 {[%clk 0:00:54.3]} 19. f3 {[%clk 0:00:17.2]} 19...
Bh3 {[%clk 0:00:32.8]} 20. gxf4 {[%clk 0:00:17.3]} 20... Ng6 {[%clk 0:00:30.6]}
21. Qe3 {[%clk 0:00:17.6]} 21... Qe7 {[%clk 0:00:22.2]} 22. Nc3 {[%clk
0:00:18.4]} 22... Qh4 {[%clk 0:00:22.3]} 23. e5 {[%clk 0:00:19.1]} 23... Bxg2
{[%clk 0:00:20.8]} 24. exd6+ {[%clk 0:00:20]} 24... Kf8 {[%clk 0:00:20.8]} 25.
d7 {[%clk 0:00:07.8]} 25... Kg8 {[%clk 0:00:16]} 26. Rxg2 {[%clk 0:00:06.1]}
26... Qh1+ {[%clk 0:00:08.6]} 27. Kf2 {[%clk 0:00:07.3]} 27... Qh4+ {[%clk
0:00:09.4]} 28. Kf1 {[%clk 0:00:07.5]} 28... Nxf4 {[%clk 0:00:09.9]} 29. Rg4
{[%clk 0:00:05]} 29... Qh1+ {[%clk 0:00:09.9]} 30. Qg1 {[%clk 0:00:06.3]} 30...
Qxf3+ {[%clk 0:00:09]} 31. Ke1 {[%clk 0:00:07.9]} 31... Rh1 {[%clk 0:00:07]} 32.
Rxg7+ {[%clk 0:00:07]} 32... Kh8 {[%clk 0:00:08.1]} 33. Kd2 {[%clk 0:00:05.9]}
33... Rxg1 {[%clk 0:00:06.9]} 34. Raxg1 {[%clk 0:00:07.8]} 34... Ng6 {[%clk
0:00:07.6]} 35. R1xg6 {[%clk 0:00:05.2]} 35... fxg6 {[%clk 0:00:09.5]} 36. Re7
{[%clk 0:00:06.6]} 36... Qf4+ {[%clk 0:00:10.4]} 37. Kd3 {[%clk 0:00:07.1]}
37... Qf5+ {[%clk 0:00:11.4]} 38. Ne4 {[%clk 0:00:08]} 38... Rf8 {[%clk
0:00:09.7]} 39. Kd4 {[%clk 0:00:08.3]} 39... g5 {[%clk 0:00:09.5]} 40. Nd6
{[%clk 0:00:08]} 40... Qf6+ {[%clk 0:00:09.8]} 41. Re5 {[%clk 0:00:09.4]} 41...
Qxd6+ {[%clk 0:00:10.7]} 42. Rd5 {[%clk 0:00:11]} 42... Qb6+ {[%clk 0:00:11.8]}
43. Ke4 {[%clk 0:00:12.4]} 43... Rf4+ {[%clk 0:00:12.2]} 44. Ke5 {[%clk
0:00:13.5]} 44... Qf6# {[%clk 0:00:12.5]} 0-1

[Event "*** Titled Tuesday Blitz AM"]
[Site "Chess.com"]
[Date "2020.01.07"]
[Round "3"]
[White "elpepinillo14"]
[Black "NemtsevIgor"]
[Result "0-1"]
[WhiteElo "2623"]
[BlackElo "2362"]
[TimeControl "180+2"]
[EndTime "9:38:06 PST"]
[Termination "NemtsevIgor won by resignation"]

1. e4 {[%clk 0:03:01.9]} 1... c6 {[%clk 0:03:00.4]} 2. d4 {[%clk 0:03:02.2]}
2... d5 {[%clk 0:03:01.3]} 3. exd5 {[%clk 0:03:04.1]} 3... cxd5 {[%clk
0:03:02.1]} 4. c4 {[%clk 0:03:06]} 4... Nf6 {[%clk 0:03:02.8]} 5. Nc3 {[%clk
0:03:07.2]} 5... e6 {[%clk 0:03:03.8]} 6. Nf3 {[%clk 0:03:06.8]} 6... Be7 {[%clk
0:03:04.3]} 7. c5 {[%clk 0:03:05.2]} 7... O-O {[%clk 0:03:04.4]} 8. Bf4 {[%clk
0:03:03.3]} 8... Ne4 {[%clk 0:03:00.8]} 9. Bd3 {[%clk 0:03:02.6]} 9... f5 {[%clk
0:03:01.2]} 10. O-O {[%clk 0:03:01.4]} 10... Nc6 {[%clk 0:03:00.2]} 11. Bb5
{[%clk 0:02:48]} 11... Bf6 {[%clk 0:02:57.4]} 12. Bxc6 {[%clk 0:02:44.8]} 12...
bxc6 {[%clk 0:02:58.1]} 13. Ne5 {[%clk 0:02:45.2]} 13... Bd7 {[%clk 0:02:47.5]}
14. Qa4 {[%clk 0:02:34.2]} 14... Be8 {[%clk 0:02:37]} 15. Nxe4 {[%clk
0:01:56.4]} 15... dxe4 {[%clk 0:02:24.8]} 16. Rad1 {[%clk 0:01:51.1]} 16... g5
{[%clk 0:02:19.2]} 17. Bc1 {[%clk 0:01:43.8]} 17... Qd5 {[%clk 0:02:10.2]} 18.
Nc4 {[%clk 0:01:41.9]} 18... Bh5 {[%clk 0:01:58.4]} 19. Rd2 {[%clk 0:01:40.3]}
19... f4 {[%clk 0:01:33.4]} 20. Re1 {[%clk 0:01:30.8]} 20... Bxd4 {[%clk
0:01:25.1]} 21. Nd6 {[%clk 0:01:14.6]} 21... e5 {[%clk 0:01:01.9]} 22. Nxe4
{[%clk 0:01:07.4]} 22... h6 {[%clk 0:00:48]} 23. b3 {[%clk 0:00:44.7]} 23... Bg6
{[%clk 0:00:48.1]} 24. Bb2 {[%clk 0:00:34.3]} 24... Rad8 {[%clk 0:00:43.6]} 25.
Bxd4 {[%clk 0:00:30.6]} 25... exd4 {[%clk 0:00:42.5]} 26. Nd6 {[%clk 0:00:27.6]}
26... Qxc5 {[%clk 0:00:32.6]} 27. Qxd4 {[%clk 0:00:28.4]} 27... Qxd4 {[%clk
0:00:33.5]} 28. Rxd4 {[%clk 0:00:30.3]} 28... Rd7 {[%clk 0:00:30.9]} 29. Re6
{[%clk 0:00:28.2]} 29... Bb1 {[%clk 0:00:20.9]} 30. a3 {[%clk 0:00:23.9]} 30...
Rfd8 {[%clk 0:00:21.3]} 31. f3 {[%clk 0:00:21.7]} 31... h5 {[%clk 0:00:21]} 32.
b4 {[%clk 0:00:20.5]} 32... Ba2 {[%clk 0:00:19.9]} 33. Rf6 {[%clk 0:00:15.9]}
33... Kg7 {[%clk 0:00:19.8]} 34. Rf5 {[%clk 0:00:07]} 34... Rxd6 {[%clk
0:00:21]} 35. Rxg5+ {[%clk 0:00:08.2]} 35... Kf6 {[%clk 0:00:22.2]} 36. Rxd6+
{[%clk 0:00:09.1]} 36... Rxd6 {[%clk 0:00:23.5]} 37. Rxh5 {[%clk 0:00:11]} 37...
Rd2 {[%clk 0:00:24.3]} 38. Rh6+ {[%clk 0:00:10.6]} 38... Ke5 {[%clk 0:00:24.9]}
39. Rxc6 {[%clk 0:00:12.5]} 39... Bd5 {[%clk 0:00:25.3]} 40. Ra6 {[%clk
0:00:11.8]} 40... Kd4 {[%clk 0:00:23.9]} 41. g3 {[%clk 0:00:11.6]} 41... Bxf3
{[%clk 0:00:23]} 42. gxf4 {[%clk 0:00:12]} 42... Ke3 {[%clk 0:00:24.2]} 43. Re6+
{[%clk 0:00:12.6]} 43... Be4 {[%clk 0:00:25.5]} 44. h4 {[%clk 0:00:12.1]} 44...
Kf3 {[%clk 0:00:25.8]} 45. h5 {[%clk 0:00:11.7]} 45... Rg2+ {[%clk 0:00:24]} 46.
Kf1 {[%clk 0:00:12.8]} 46... Rh2 {[%clk 0:00:24.9]} 47. Ke1 {[%clk 0:00:11.8]}
47... Ke3 {[%clk 0:00:24.8]} 0-1